[Event "NJSK 2022 Jeugd B"]
[Site "Almelo, Netherlands"]
[Date "2022.05.03"]
[Round "3.1"]
[White "Slagboom, Leandro"]
[Black "Achuthan, Dylan"]
[Result "1/2-1/2"]
[TimeControl "90min/40moves + 30min + 30sec/move"]
[WhiteElo "1997"]
[BlackElo "1995"]

1. e4 {[%clk 01:30:57]} {[%emt 00:00:03]} Nf6 {[%clk 01:30:53]} {[%emt
00:00:07]} 2. e5 {[%clk 01:25:18]} {[%emt 00:06:10]} Nd5 {[%clk 01:31:18]}
{[%emt 00:00:05]} 3. d4 {[%clk 01:25:42]} {[%emt 00:00:06]} d6 {[%clk
01:31:44]} {[%emt 00:00:04]} 4. c4 {[%clk 01:26:08]} {[%emt 00:00:05]} Nb6
{[%clk 01:32:10]} {[%emt 00:00:03]} 5. f4 {[%clk 01:25:10]} {[%emt 00:01:28]}
dxe5 {[%clk 01:27:40]} {[%emt 00:05:00]} 6. fxe5 {[%clk 01:25:20]} {[%emt
00:00:20]} c5 {[%clk 01:21:03]} {[%emt 00:07:07]} 7. d5 {[%clk 00:58:31]}
{[%emt 00:27:19]} e6 {[%clk 01:21:01]} {[%emt 00:00:32]} 8. Nf3 {[%clk
00:58:11]} {[%emt 00:00:51]} exd5 {[%clk 01:16:20]} {[%emt 00:05:11]} 9. Bg5
{[%clk 00:58:07]} {[%emt 00:00:34]} Be7 {[%clk 00:30:06]} {[%emt 00:46:43]} 10.
Bxe7 {[%clk 00:55:37]} {[%emt 00:03:00]} Kxe7 {[%clk 00:27:39]} {[%emt
00:02:56]} 11. Nc3 {[%clk 00:52:26]} {[%emt 00:03:42]} 1/2-1/2

[Event "NJSK 2022 Jeugd B"]
[Site "Almelo, Netherlands"]
[Date "2022.05.03"]
[Round "3.2"]
[White "Niemeijer, Leon"]
[Black "De Rooij, Kevin"]
[Result "1-0"]
[TimeControl "90min/40moves + 30min + 30sec/move"]
[WhiteElo "1693"]
[BlackElo "1584"]

1. d4 {[%clk 01:30:56]} {[%emt 00:00:04]} d5 {[%clk 01:30:54]} {[%emt
00:00:06]} 2. c4 {[%clk 01:31:21]} {[%emt 00:00:05]} c6 {[%clk 01:31:10]}
{[%emt 00:00:14]} 3. Nf3 {[%clk 01:31:46]} {[%emt 00:00:05]} Nf6 {[%clk
01:30:49]} {[%emt 00:00:51]} 4. e3 {[%clk 01:32:09]} {[%emt 00:00:07]} Bf5
{[%clk 01:30:10]} {[%emt 00:01:09]} 5. Nc3 {[%clk 01:31:43]} {[%emt 00:00:56]}
e6 {[%clk 01:29:49]} {[%emt 00:00:51]} 6. Nh4 {[%clk 01:30:42]} {[%emt
00:01:31]} Bg6 {[%clk 01:23:42]} {[%emt 00:06:37]} 7. Nxg6 {[%clk 01:29:45]}
{[%emt 00:01:27]} hxg6 {[%clk 01:24:01]} {[%emt 00:00:11]} 8. Qb3 {[%clk
01:28:54]} {[%emt 00:01:21]} Qc7 {[%clk 01:22:17]} {[%emt 00:02:14]} 9. cxd5
{[%clk 01:28:30]} {[%emt 00:00:54]} exd5 {[%clk 01:22:08]} {[%emt 00:00:39]} 10.
Bd2 {[%clk 01:21:07]} {[%emt 00:07:53]} Bd6 {[%clk 01:20:01]} {[%emt 00:02:37]}
11. Rc1 {[%clk 01:16:25]} {[%emt 00:05:12]} Nbd7 {[%clk 01:12:51]} {[%emt
00:07:39]} 12. Nb5 {[%clk 01:14:32]} {[%emt 00:02:23]} Qb8 {[%clk 01:05:29]}
{[%emt 00:07:52]} 13. Nxd6+ {[%clk 01:13:08]} {[%emt 00:01:55]} Qxd6 {[%clk
01:05:57]} {[%emt 00:00:02]} 14. Qxb7 {[%clk 01:13:03]} {[%emt 00:00:35]} O-O
{[%clk 00:48:45]} {[%emt 00:17:42]} 15. Rxc6 {[%clk 01:10:42]} {[%emt
00:02:51]} Qe7 {[%clk 00:40:04]} {[%emt 00:09:10]} 16. Qb3 {[%clk 01:06:16]}
{[%emt 00:04:56]} Ne4 {[%clk 00:38:28]} {[%emt 00:02:06]} 17. Bb4 {[%clk
00:49:07]} {[%emt 00:17:40]} Qh4 {[%clk 00:36:32]} {[%emt 00:02:26]} 18. Qc2
{[%clk 00:49:23]} {[%emt 00:00:14]} Rfe8 {[%clk 00:36:29]} {[%emt 00:00:33]} 19.
Bd3 {[%clk 00:39:35]} {[%emt 00:10:18]} Nxf2 {[%clk 00:29:51]} {[%emt
00:07:08]} 20. Qxf2 {[%clk 00:39:17]} {[%emt 00:00:47]} Qxd4 {[%clk 00:29:45]}
{[%emt 00:00:36]} 21. O-O {[%clk 00:39:20]} {[%emt 00:00:26]} Qxd3 {[%clk
00:29:25]} {[%emt 00:00:52]} 22. Qxf7+ {[%clk 00:39:25]} {[%emt 00:00:26]} Kh8
{[%clk 00:29:33]} {[%emt 00:00:22]} 23. Qxd7 {[%clk 00:38:53]} {[%emt
00:01:01]} Qxe3+ {[%clk 00:29:21]} {[%emt 00:00:42]} 24. Kh1 {[%clk 00:39:04]}
{[%emt 00:00:19]} a5 {[%clk 00:29:07]} {[%emt 00:00:44]} 25. Bc3 {[%clk
00:38:17]} {[%emt 00:01:17]} Re7 {[%clk 00:28:09]} {[%emt 00:01:29]} 26. Qh3+
{[%clk 00:37:19]} {[%emt 00:01:27]} Qxh3 {[%clk 00:28:21]} {[%emt 00:00:18]} 27.
gxh3 {[%clk 00:37:43]} {[%emt 00:00:06]} Re2 {[%clk 00:28:32]} {[%emt
00:00:19]} 28. Rd6 {[%clk 00:37:50]} {[%emt 00:00:23]} Rae8 {[%clk 00:28:38]}
{[%emt 00:00:24]} 29. Rxd5 {[%clk 00:37:48]} {[%emt 00:00:32]} Rc2 {[%clk
00:28:52]} {[%emt 00:00:16]} 30. Rd2 {[%clk 00:38:00]} {[%emt 00:00:18]} Re2
{[%clk 00:28:59]} {[%emt 00:00:23]} 31. Rxe2 {[%clk 00:37:39]} {[%emt
00:00:51]} Rxe2 {[%clk 00:29:25]} {[%emt 00:00:05]} 32. Rf7 {[%clk 00:37:49]}
{[%emt 00:00:20]} Rc2 {[%clk 00:29:41]} {[%emt 00:00:13]} 33. Rc7 {[%clk
00:34:29]} {[%emt 00:03:50]} 1-0

[Event "NJSK 2022 Jeugd B"]
[Site "Almelo, Netherlands"]
[Date "2022.05.03"]
[Round "3.3"]
[White "Labruyere, Roger"]
[Black "Van der Hagen, Loek"]
[Result "0-1"]
[TimeControl "90min/40moves + 30min + 30sec/move"]
[WhiteElo "2199"]
[BlackElo "2071"]

1. e4 {[%clk 01:30:58]} {[%emt 00:00:01]} e6 {[%clk 01:30:42]} {[%emt
00:00:18]} 2. d4 {[%clk 01:30:55]} {[%emt 00:00:33]} d5 {[%clk 01:31:07]}
{[%emt 00:00:05]} 3. Nd2 {[%clk 01:30:38]} {[%emt 00:00:47]} c5 {[%clk
01:31:23]} {[%emt 00:00:15]} 4. Ngf3 {[%clk 01:30:45]} {[%emt 00:00:22]} cxd4
{[%clk 01:31:22]} {[%emt 00:00:32]} 5. Nxd4 {[%clk 01:31:11]} {[%emt 00:00:03]}
Nc6 {[%clk 01:31:33]} {[%emt 00:00:19]} 6. Nxc6 {[%clk 01:31:26]} {[%emt
00:00:15]} bxc6 {[%clk 01:31:57]} {[%emt 00:00:05]} 7. Bd3 {[%clk 01:31:54]}
{[%emt 00:00:03]} Bd6 {[%clk 01:31:35]} {[%emt 00:00:53]} 8. O-O {[%clk
01:27:41]} {[%emt 00:04:42]} Qc7 {[%clk 01:30:01]} {[%emt 00:02:04]} 9. Kh1
{[%clk 01:19:14]} {[%emt 00:08:57]} Ne7 {[%clk 01:26:15]} {[%emt 00:04:17]} 10.
Nb3 {[%clk 01:13:32]} {[%emt 00:06:12]} Ng6 {[%clk 01:10:38]} {[%emt 00:16:07]}
11. c4 {[%clk 01:04:00]} {[%emt 00:10:00]} O-O {[%clk 00:58:02]} {[%emt
00:13:07]} 12. cxd5 {[%clk 01:03:52]} {[%emt 00:00:39]} cxd5 {[%clk 00:58:21]}
{[%emt 00:00:11]} 13. exd5 {[%clk 01:04:06]} {[%emt 00:00:15]} e5 {[%clk
00:53:18]} {[%emt 00:05:33]} 14. Bd2 {[%clk 01:02:29]} {[%emt 00:02:06]} f5
{[%clk 00:53:03]} {[%emt 00:00:45]} 15. Rc1 {[%clk 01:02:43]} {[%emt 00:00:16]}
Qe7 {[%clk 00:52:35]} {[%emt 00:00:59]} 16. f4 {[%clk 00:48:14]} {[%emt
00:14:59]} Nxf4 {[%clk 00:47:02]} {[%emt 00:06:04]} 17. Bxf4 {[%clk 00:48:03]}
{[%emt 00:00:40]} exf4 {[%clk 00:47:28]} {[%emt 00:00:04]} 18. Re1 {[%clk
00:47:51]} {[%emt 00:00:42]} Qh4 {[%clk 00:43:06]} {[%emt 00:04:52]} 19. Nd4
{[%clk 00:40:59]} {[%emt 00:07:22]} Rb8 {[%clk 00:35:40]} {[%emt 00:07:56]} 20.
Qe2 {[%clk 00:28:03]} {[%emt 00:13:26]} Bd7 {[%clk 00:30:13]} {[%emt 00:05:57]}
21. Nf3 {[%clk 00:22:44]} {[%emt 00:05:49]} Qh6 {[%clk 00:25:03]} {[%emt
00:05:40]} 22. a3 {[%clk 00:22:54]} {[%emt 00:00:20]} Rfe8 {[%clk 00:24:48]}
{[%emt 00:00:45]} 23. Qf2 {[%clk 00:23:09]} {[%emt 00:00:14]} Re3 {[%clk
00:24:35]} {[%emt 00:00:44]} 24. Bf1 {[%clk 00:17:32]} {[%emt 00:06:06]} Rbe8
{[%clk 00:22:21]} {[%emt 00:02:45]} 25. h3 {[%clk 00:11:33]} {[%emt 00:06:28]}
Qf6 {[%clk 00:19:21]} {[%emt 00:03:31]} 26. Qd2 {[%clk 00:10:38]} {[%emt
00:01:25]} g5 {[%clk 00:14:46]} {[%emt 00:05:05]} 27. Re2 {[%clk 00:08:27]}
{[%emt 00:02:40]} g4 {[%clk 00:10:20]} {[%emt 00:04:58]} 28. Nd4 {[%clk
00:07:36]} {[%emt 00:01:20]} Qe5 {[%clk 00:06:26]} {[%emt 00:04:24]} 29. Rce1
{[%clk 00:05:59]} {[%emt 00:02:06]} Kf7 {[%clk 00:00:53]} {[%emt 00:06:04]} 30.
Nc2 {[%clk 00:03:32]} {[%emt 00:02:56]} Bb5 {[%clk 00:00:52]} {[%emt 00:00:31]}
31. g3 {[%clk 00:01:28]} {[%emt 00:02:34]} Bxe2 {[%clk 00:00:47]} {[%emt
00:00:36]} 32. Nxe3 {[%clk 00:01:41]} {[%emt 00:00:17]} Bf3+ {[%clk 00:00:48]}
{[%emt 00:00:29]} 33. Kg1 {[%clk 00:00:55]} {[%emt 00:01:16]} fxe3 {[%clk
00:01:14]} {[%emt 00:00:04]} 0-1

[Event "NJSK 2022 Jeugd B"]
[Site "Almelo, Netherlands"]
[Date "2022.05.03"]
[Round "3.4"]
[White "Klaren, Oscar"]
[Black "Wage, Sander"]
[Result "1/2-1/2"]
[TimeControl "90min/40moves + 30min + 30sec/move"]
[WhiteElo "1878"]
[BlackElo "1859"]

1. e4 {[%clk 01:30:56]} {[%emt 00:00:03]} c5 {[%clk 01:30:57]} {[%emt
00:00:04]} 2. Nf3 {[%clk 01:31:21]} {[%emt 00:00:05]} Nc6 {[%clk 01:31:24]}
{[%emt 00:00:03]} 3. Bb5 {[%clk 01:31:46]} {[%emt 00:00:06]} g6 {[%clk
01:31:51]} {[%emt 00:00:03]} 4. O-O {[%clk 01:32:10]} {[%emt 00:00:06]} Bg7
{[%clk 01:32:19]} {[%emt 00:00:02]} 5. Re1 {[%clk 01:32:34]} {[%emt 00:00:05]}
e5 {[%clk 01:32:46]} {[%emt 00:00:03]} 6. Bxc6 {[%clk 01:32:58]} {[%emt
00:00:07]} dxc6 {[%clk 01:33:12]} {[%emt 00:00:04]} 7. d3 {[%clk 01:33:21]}
{[%emt 00:00:06]} Qe7 {[%clk 01:33:40]} {[%emt 00:00:03]} 8. a3 {[%clk
01:33:16]} {[%emt 00:00:35]} a5 {[%clk 01:34:06]} {[%emt 00:00:04]} 9. Be3
{[%clk 01:32:57]} {[%emt 00:00:48]} Nf6 {[%clk 01:34:31]} {[%emt 00:00:05]} 10.
a4 {[%clk 01:33:05]} {[%emt 00:00:22]} b6 {[%clk 01:34:27]} {[%emt 00:00:35]}
11. Na3 {[%clk 01:33:29]} {[%emt 00:00:06]} Ba6 {[%clk 01:34:52]} {[%emt
00:00:05]} 12. b3 {[%clk 01:32:31]} {[%emt 00:01:28]} O-O {[%clk 01:33:47]}
{[%emt 00:01:33]} 13. h3 {[%clk 01:29:23]} {[%emt 00:03:39]} Nd7 {[%clk
01:32:57]} {[%emt 00:01:20]} 14. Qd2 {[%clk 01:28:14]} {[%emt 00:01:39]} Rfb8
{[%clk 01:29:22]} {[%emt 00:04:05]} 15. Rad1 {[%clk 01:22:34]} {[%emt
00:06:10]} Nf8 {[%clk 01:25:04]} {[%emt 00:04:49]} 16. Bg5 {[%clk 01:15:50]}
{[%emt 00:07:13]} f6 {[%clk 01:25:25]} {[%emt 00:00:09]} 17. Bh6 {[%clk
01:15:34]} {[%emt 00:00:46]} Ne6 {[%clk 01:17:38]} {[%emt 00:08:17]} 18. Bxg7
{[%clk 01:15:37]} {[%emt 00:00:27]} Kxg7 {[%clk 01:13:12]} {[%emt 00:04:57]} 19.
Nb1 {[%clk 01:07:34]} {[%emt 00:08:33]} Rd8 {[%clk 00:54:16]} {[%emt 00:19:25]}
20. Qe3 {[%clk 00:58:24]} {[%emt 00:09:40]} b5 {[%clk 00:48:17]} {[%emt
00:06:29]} 21. Nbd2 {[%clk 00:46:53]} {[%emt 00:12:01]} bxa4 {[%clk 00:47:28]}
{[%emt 00:01:19]} 22. bxa4 {[%clk 00:47:17]} {[%emt 00:00:07]} Nd4 {[%clk
00:46:35]} {[%emt 00:01:22]} 23. Nxd4 {[%clk 00:45:16]} {[%emt 00:02:31]} cxd4
{[%clk 00:46:00]} {[%emt 00:01:06]} 24. Qg3 {[%clk 00:45:36]} {[%emt 00:00:10]}
g5 {[%clk 00:35:53]} {[%emt 00:10:37]} 25. Rb1 {[%clk 00:38:46]} {[%emt
00:07:20]} Rab8 {[%clk 00:34:04]} {[%emt 00:02:19]} 26. Nb3 {[%clk 00:30:07]}
{[%emt 00:09:08]} Qb4 {[%clk 00:31:35]} {[%emt 00:03:00]} 27. f4 {[%clk
00:18:00]} {[%emt 00:12:37]} exf4 {[%clk 00:27:57]} {[%emt 00:04:08]} 28. Qf3
{[%clk 00:18:21]} {[%emt 00:00:08]} Qd6 {[%clk 00:25:25]} {[%emt 00:03:03]} 29.
Nxa5 {[%clk 00:16:20]} {[%emt 00:02:31]} Rxb1 {[%clk 00:25:43]} {[%emt
00:00:12]} 30. Rxb1 {[%clk 00:16:45]} {[%emt 00:00:05]} Qc5 {[%clk 00:25:56]}
{[%emt 00:00:17]} 31. Rb7+ {[%clk 00:09:22]} {[%emt 00:07:53]} Bxb7 {[%clk
00:22:50]} {[%emt 00:03:36]} 32. Nxb7 {[%clk 00:09:46]} {[%emt 00:00:05]} Qe7
{[%clk 00:22:58]} {[%emt 00:00:23]} 33. Nxd8 {[%clk 00:10:11]} {[%emt
00:00:05]} Qxd8 {[%clk 00:23:23]} {[%emt 00:00:05]} 34. e5 {[%clk 00:09:47]}
{[%emt 00:00:54]} fxe5 {[%clk 00:23:40]} {[%emt 00:00:14]} 35. Qxc6 {[%clk
00:10:11]} {[%emt 00:00:05]} Qa5 {[%clk 00:21:47]} {[%emt 00:02:23]} 1/2-1/2

[Event "NJSK 2022 Jeugd B"]
[Site "Almelo, Netherlands"]
[Date "2022.05.03"]
[Round "3.5"]
[White "Van Egmond, Tom"]
[Black "Groen, Jari"]
[Result "1/2-1/2"]
[TimeControl "90min/40moves + 30min + 30sec/move"]
[WhiteElo "1672"]
[BlackElo "1750"]

1. e4 {[%clk 01:30:58]} {[%emt 00:00:02]} c5 {[%clk 01:30:48]} {[%emt
00:00:12]} 2. Nf3 {[%clk 01:31:23]} {[%emt 00:00:05]} Nc6 {[%clk 01:31:08]}
{[%emt 00:00:11]} 3. Bb5 {[%clk 01:31:42]} {[%emt 00:00:10]} e6 {[%clk
01:31:13]} {[%emt 00:00:25]} 4. Bxc6 {[%clk 01:31:48]} {[%emt 00:00:24]} bxc6
{[%clk 01:31:35]} {[%emt 00:00:08]} 5. d3 {[%clk 01:32:12]} {[%emt 00:00:06]}
Ne7 {[%clk 01:30:43]} {[%emt 00:01:23]} 6. h4 {[%clk 01:32:05]} {[%emt
00:00:37]} d6 {[%clk 01:26:05]} {[%emt 00:05:08]} 7. h5 {[%clk 01:32:13]}
{[%emt 00:00:22]} e5 {[%clk 01:24:20]} {[%emt 00:02:15]} 8. Nbd2 {[%clk
01:32:31]} {[%emt 00:00:11]} Bg4 {[%clk 01:17:32]} {[%emt 00:07:19]} 9. Nc4
{[%clk 01:29:34]} {[%emt 00:03:27]} Qd7 {[%clk 01:08:49]} {[%emt 00:09:13]} 10.
a3 {[%clk 01:08:57]} {[%emt 00:21:07]} Ng8 {[%clk 01:04:10]} {[%emt 00:05:07]}
11. b4 {[%clk 00:54:48]} {[%emt 00:14:40]} cxb4 {[%clk 01:01:57]} {[%emt
00:02:43]} 12. axb4 {[%clk 00:44:19]} {[%emt 00:10:58]} Qc7 {[%clk 00:56:10]}
{[%emt 00:06:17]} 13. Ne3 {[%clk 00:28:07]} {[%emt 00:16:42]} Be6 {[%clk
00:52:51]} {[%emt 00:03:50]} 14. Ng5 {[%clk 00:23:31]} {[%emt 00:05:06]} Nf6
{[%clk 00:49:31]} {[%emt 00:03:50]} 15. Nxe6 {[%clk 00:23:21]} {[%emt
00:00:41]} fxe6 {[%clk 00:49:55]} {[%emt 00:00:06]} 16. Ng4 {[%clk 00:21:34]}
{[%emt 00:02:17]} Be7 {[%clk 00:41:52]} {[%emt 00:08:32]} 17. c4 {[%clk
00:20:16]} {[%emt 00:01:48]} O-O {[%clk 00:33:00]} {[%emt 00:09:22]} 18. Nxf6+
{[%clk 00:18:49]} {[%emt 00:01:56]} Bxf6 {[%clk 00:30:33]} {[%emt 00:02:57]} 19.
Be3 {[%clk 00:18:39]} {[%emt 00:00:41]} a6 {[%clk 00:23:13]} {[%emt 00:07:50]}
20. O-O {[%clk 00:14:08]} {[%emt 00:05:01]} Rfb8 {[%clk 00:19:37]} {[%emt
00:04:06]} 21. Qa4 {[%clk 00:12:36]} {[%emt 00:02:01]} Qb7 {[%clk 00:17:58]}
{[%emt 00:02:09]} 22. Rfb1 {[%clk 00:12:10]} {[%emt 00:00:57]} Be7 {[%clk
00:16:55]} {[%emt 00:01:32]} 23. Bd2 {[%clk 00:11:44]} {[%emt 00:00:56]} d5
{[%clk 00:13:58]} {[%emt 00:03:28]} 24. c5 {[%clk 00:10:55]} {[%emt 00:01:19]}
Qb5 {[%clk 00:13:19]} {[%emt 00:01:08]} 25. Qxb5 {[%clk 00:10:25]} {[%emt
00:01:01]} axb5 {[%clk 00:13:38]} {[%emt 00:00:11]} 26. exd5 {[%clk 00:10:25]}
{[%emt 00:00:29]} exd5 {[%clk 00:13:48]} {[%emt 00:00:21]} 27. f3 {[%clk
00:06:58]} {[%emt 00:03:57]} Kf7 {[%clk 00:12:26]} {[%emt 00:01:52]} 28. Bc3
{[%clk 00:06:18]} {[%emt 00:01:10]} Bf6 {[%clk 00:12:03]} {[%emt 00:00:52]} 29.
Re1 {[%clk 00:06:07]} {[%emt 00:00:42]} Re8 {[%clk 00:09:01]} {[%emt 00:03:31]}
30. g4 {[%clk 00:05:44]} {[%emt 00:00:53]} Bg5 {[%clk 00:05:11]} {[%emt
00:04:19]} 31. Rxa8 {[%clk 00:05:13]} {[%emt 00:01:02]} Rxa8 {[%clk 00:05:32]}
{[%emt 00:00:09]} 32. Rxe5 {[%clk 00:05:15]} {[%emt 00:00:28]} Bf6 {[%clk
00:04:48]} {[%emt 00:01:13]} 33. Rf5 {[%clk 00:05:40]} {[%emt 00:00:06]} Ke6
{[%clk 00:04:35]} {[%emt 00:00:43]} 34. Bxf6 {[%clk 00:04:35]} {[%emt
00:01:36]} gxf6 {[%clk 00:05:00]} {[%emt 00:00:04]} 35. Kf2 {[%clk 00:03:26]}
{[%emt 00:01:39]} Ra1 {[%clk 00:02:16]} {[%emt 00:03:15]} 36. Ke3 {[%clk
00:02:53]} {[%emt 00:01:02]} h6 {[%clk 00:01:45]} {[%emt 00:01:01]} 37. Kd2
{[%clk 00:02:50]} {[%emt 00:00:33]} Ra3 {[%clk 00:01:22]} {[%emt 00:00:53]} 38.
Kc2 {[%clk 00:02:31]} {[%emt 00:00:49]} Ra1 {[%clk 00:01:20]} {[%emt 00:00:32]}
39. Kd2 {[%clk 00:02:22]} {[%emt 00:00:39]} Rb1 {[%clk 00:01:17]} {[%emt
00:00:34]} 40. Rf4 {[%clk 00:02:14]} {[%emt 00:00:37]} Ke5 {[%clk 00:00:46]}
{[%emt 00:01:00]} 41. Rf5+ {[%clk 00:02:20]} {[%emt 00:00:25]} Ke6 {[%clk
00:28:48]} {[%emt 00:02:28]} 42. Rf4 {[%clk 00:31:55]} {[%emt 00:00:56]} Ke5
{[%clk 00:28:57]} {[%emt 00:00:21]} 1/2-1/2

[Event "NJSK 2022 Jeugd B"]
[Site "Almelo, Netherlands"]
[Date "2022.05.03"]
[Round "3.6"]
[White "Aarts, Joaquin"]
[Black "Wierenga, Jael"]
[Result "1/2-1/2"]
[TimeControl "90min/40moves + 30min + 30sec/move"]
[WhiteElo "1631"]
[BlackElo "1691"]

1. d4 {[%clk 01:30:49]} {[%emt 00:00:10]} e6 {[%clk 01:30:46]} {[%emt
00:00:14]} 2. Nf3 {[%clk 01:31:14]} {[%emt 00:00:04]} c5 {[%clk 01:30:04]}
{[%emt 00:01:13]} 3. e4 {[%clk 01:24:59]} {[%emt 00:06:45]} d5 {[%clk
01:28:23]} {[%emt 00:02:11]} 4. exd5 {[%clk 01:19:20]} {[%emt 00:06:09]} exd5
{[%clk 01:27:47]} {[%emt 00:01:06]} 5. dxc5 {[%clk 01:10:27]} {[%emt 00:09:23]}
Bxc5 {[%clk 01:25:26]} {[%emt 00:02:51]} 6. Bb5+ {[%clk 01:00:34]} {[%emt
00:10:23]} Nc6 {[%clk 01:24:22]} {[%emt 00:01:34]} 7. O-O {[%clk 01:00:53]}
{[%emt 00:00:11]} Nge7 {[%clk 01:22:38]} {[%emt 00:02:15]} 8. Bg5 {[%clk
00:59:37]} {[%emt 00:01:45]} f6 {[%clk 01:20:34]} {[%emt 00:02:34]} 9. Bf4
{[%clk 00:59:47]} {[%emt 00:00:19]} O-O {[%clk 01:17:24]} {[%emt 00:03:41]} 10.
a3 {[%clk 00:57:27]} {[%emt 00:02:50]} Bg4 {[%clk 01:06:19]} {[%emt 00:11:34]}
11. Be2 {[%clk 00:53:29]} {[%emt 00:04:29]} g5 {[%clk 00:46:08]} {[%emt
00:20:41]} 12. Bg3 {[%clk 00:49:42]} {[%emt 00:04:17]} Nf5 {[%clk 00:40:35]}
{[%emt 00:06:03]} 13. Nc3 {[%clk 00:47:22]} {[%emt 00:02:50]} Nxg3 {[%clk
00:38:26]} {[%emt 00:02:39]} 14. hxg3 {[%clk 00:47:46]} {[%emt 00:00:06]} Ne7
{[%clk 00:27:39]} {[%emt 00:11:17]} 15. Na4 {[%clk 00:40:08]} {[%emt 00:08:08]}
Bd6 {[%clk 00:20:48]} {[%emt 00:07:21]} 16. Nd4 {[%clk 00:38:51]} {[%emt
00:01:47]} Bxe2 {[%clk 00:16:02]} {[%emt 00:05:16]} 17. Qxe2 {[%clk 00:38:20]}
{[%emt 00:01:02]} Qd7 {[%clk 00:16:19]} {[%emt 00:00:13]} 18. Nc3 {[%clk
00:36:48]} {[%emt 00:02:02]} Be5 {[%clk 00:14:59]} {[%emt 00:01:49]} 19. Qd3
{[%clk 00:36:15]} {[%emt 00:01:03]} Rac8 {[%clk 00:13:21]} {[%emt 00:02:08]} 20.
Rad1 {[%clk 00:27:25]} {[%emt 00:09:20]} Nc6 {[%clk 00:11:58]} {[%emt
00:01:53]} 21. Nde2 {[%clk 00:19:46]} {[%emt 00:08:09]} d4 {[%clk 00:09:16]}
{[%emt 00:03:13]} 22. Rd2 {[%clk 00:12:10]} {[%emt 00:08:06]} Rfd8 {[%clk
00:04:35]} {[%emt 00:05:11]} 23. Na2 {[%clk 00:10:25]} {[%emt 00:02:15]} Qe6
{[%clk 00:03:50]} {[%emt 00:01:15]} 24. Nac1 {[%clk 00:10:00]} {[%emt
00:00:55]} Na5 {[%clk 00:03:27]} {[%emt 00:00:53]} 25. b3 {[%clk 00:05:59]}
{[%emt 00:04:31]} Qe7 {[%clk 00:03:47]} {[%emt 00:00:09]} 26. a4 {[%clk
00:04:26]} {[%emt 00:02:03]} Nc6 {[%clk 00:03:58]} {[%emt 00:00:19]} 27. Na2
{[%clk 00:04:08]} {[%emt 00:00:48]} Qa3 {[%clk 00:02:49]} {[%emt 00:01:39]} 28.
Nec1 {[%clk 00:03:33]} {[%emt 00:01:05]} a5 {[%clk 00:01:56]} {[%emt 00:01:23]}
29. f4 {[%clk 00:03:08]} {[%emt 00:00:55]} Bb8 {[%clk 00:01:41]} {[%emt
00:00:46]} 30. fxg5 {[%clk 00:03:10]} {[%emt 00:00:28]} Ne5 {[%clk 00:01:56]}
{[%emt 00:00:15]} 31. Qf5 {[%clk 00:03:16]} {[%emt 00:00:24]} fxg5 {[%clk
00:01:32]} {[%emt 00:00:53]} 32. Qxg5+ {[%clk 00:03:03]} {[%emt 00:00:43]} Ng6
{[%clk 00:01:56]} {[%emt 00:00:06]} 33. Qf6 {[%clk 00:02:21]} {[%emt 00:01:12]}
Rf8 {[%clk 00:01:07]} {[%emt 00:01:19]} 34. Qxd4 {[%clk 00:02:09]} {[%emt
00:00:42]} Qe7 {[%clk 00:00:47]} {[%emt 00:00:50]} 35. Qd5+ {[%clk 00:01:44]}
{[%emt 00:00:56]} Kh8 {[%clk 00:01:03]} {[%emt 00:00:14]} 36. Qd4+ {[%clk
00:01:03]} {[%emt 00:01:11]} Be5 {[%clk 00:01:22]} {[%emt 00:00:11]} 37. Qd7
{[%clk 00:00:44]} {[%emt 00:00:48]} Qc5+ {[%clk 00:01:07]} {[%emt 00:00:45]} 38.
Rff2 {[%clk 00:00:37]} {[%emt 00:00:39]} Bxg3 {[%clk 00:00:57]} {[%emt
00:00:39]} 39. Nd3 {[%clk 00:00:39]} {[%emt 00:00:27]} Bxf2+ {[%clk 00:01:13]}
{[%emt 00:00:14]} 40. Nxf2 {[%clk 00:01:05]} {[%emt 00:00:04]} Rcd8 {[%clk
00:01:25]} {[%emt 00:00:18]} 41. Qxd8 {[%clk 00:00:59]} {[%emt 00:00:36]} Rxd8
{[%clk 00:01:54]} {[%emt 00:00:01]} 42. Rxd8+ {[%clk 00:01:23]} {[%emt
00:00:07]} Kg7 {[%clk 00:02:05]} {[%emt 00:00:19]} 43. Rd2 {[%clk 00:28:50]}
{[%emt 00:03:02]} Ne5 {[%clk 00:29:11]} {[%emt 00:03:24]} 44. Kf1 {[%clk
00:22:56]} {[%emt 00:06:25]} Qa3 {[%clk 00:28:39]} {[%emt 00:01:02]} 45. Rd5
{[%clk 00:20:49]} {[%emt 00:02:36]} Qb2 {[%clk 00:22:20]} {[%emt 00:06:49]} 46.
Rc5 {[%clk 00:17:50]} {[%emt 00:03:29]} Qxa2 {[%clk 00:14:40]} {[%emt
00:08:10]} 47. Rxe5 {[%clk 00:17:57]} {[%emt 00:00:23]} Qxc2 {[%clk 00:14:53]}
{[%emt 00:00:18]} 48. Rb5 {[%clk 00:13:45]} {[%emt 00:04:41]} Qc6 {[%clk
00:14:35]} {[%emt 00:00:45]} 49. g4 {[%clk 00:11:38]} {[%emt 00:02:41]} Qf3
{[%clk 00:13:42]} {[%emt 00:01:20]} 50. Ke1 {[%clk 00:11:09]} {[%emt 00:01:02]}
Kg6 {[%clk 00:13:31]} {[%emt 00:00:39]} 51. Rb6+ {[%clk 00:10:29]} {[%emt
00:01:12]} Kg7 {[%clk 00:12:58]} {[%emt 00:01:03]} 52. Rb5 {[%clk 00:10:52]}
{[%emt 00:00:07]} b6 {[%emt 00:01:07]} 1/2-1/2